fUSD/lending_fUSD_20260405
["ID","MTS","AMOUNT","RATE_DAILY","PERIOD"]
[419831013,1775404241983,-533.3,0.00013698,2]
[419831014,1775404241993,-533.3,0.00013698,2]
[419831015,1775404242002,-533.3,0.00013698,2]
[419831016,1775404242012,-533.3,0.00013698,2]
[419831017,1775404242022,-533.3,0.00013698,2]
[419831018,1775404242033,-500.0,0.00013698,2]
[419831019,1775404242043,-500.0,0.00013698,2]
[419831020,1775404242052,-500.0,0.00013698,2]
[419831021,1775404242063,-500.0,0.00013698,2]
[419831022,1775404242072,-500.0,0.00013698,2]
[419831023,1775404242082,-183.58723642,0.00013698,2]
[419831024,1775404242092,-500.0,0.00013698,2]
[419831025,1775404242102,-504.35317897,0.00013698,2]
[419831026,1775404242113,-1402.96,0.00013698,2]
[419831027,1775404242123,-1402.96,0.00013698,2]
[419831028,1775404242133,-1402.96,0.00013698,2]
[419831029,1775404242142,-1402.96,0.00013698,2]
[419831030,1775404242152,-1402.96,0.00013698,2]
[419831031,1775404242162,-1402.96,0.00013698,2]
[419831032,1775404242171,-1402.96,0.00013698,2]
[419831033,1775404242185,-1402.96,0.00013698,2]
[419831034,1775404242194,-1402.96,0.00013698,2]
[419831035,1775404242204,-1402.96,0.00013698,2]
[419831036,1775404242214,-1402.96,0.00013698,2]
[419831038,1775404242224,-588.99,0.00013698,2]
[419831040,1775404242234,-588.99,0.00013698,2]
[419831042,1775404242244,-588.99,0.00013698,2]
[419831045,1775404242254,-588.99,0.00013698,2]
[419831048,1775404242264,-588.99,0.00013698,2]
[419831049,1775404242273,-588.99,0.00013698,2]
[419831050,1775404242283,-588.99,0.00013698,2]
[419831051,1775404242293,-588.99,0.00013698,2]
[419831052,1775404242302,-588.99,0.00013698,2]
[419831053,1775404242312,-588.99,0.00013698,2]
[419831054,1775404242321,-588.99,0.00013698,2]
[419831056,1775404242331,-588.99,0.00013698,2]
[419831057,1775404242340,-588.99,0.00013698,2]
[419831060,1775404242352,-588.99,0.00013698,2]
[419831061,1775404242361,-1402.96,0.00013698,2]
[419831062,1775404242372,-969.24,0.00013698,2]
[419831063,1775404242382,-969.24,0.00013698,2]
[419831064,1775404242391,-969.24,0.00013698,2]
[419831065,1775404242401,-969.24,0.00013698,2]
[419831066,1775404242411,-969.24,0.00013698,2]
[419831067,1775404242420,-969.24,0.00013698,2]
[419831068,1775404242430,-969.24,0.00013698,2]
[419831069,1775404242439,-969.24,0.00013698,2]
[419831070,1775404242449,-969.24,0.00013698,2]
[419831071,1775404242459,-969.24,0.00013698,2]
[419831072,1775404242469,-969.24,0.00013698,2]
[419831073,1775404242480,-969.24,0.00013698,2]
[419831074,1775404242490,-969.24,0.00013698,2]
[419831076,1775404242499,-969.24,0.00013698,2]
[419831078,1775404242508,-1161.9,0.00013698,2]
[419831080,1775404242519,-500.0,0.00013698,2]
[419831083,1775404242529,-500.0,0.00013698,2]
[419831085,1775404242539,-500.0,0.00013698,2]
[419831086,1775404242549,-500.0,0.00013698,2]
[419831088,1775404242559,-500.0,0.00013698,2]
[419831089,1775404242569,-500.0,0.00013698,2]
[419831090,1775404242581,-500.0,0.00013698,2]
[419831091,1775404242592,-564.47521126,0.00013698,2]
[419831092,1775404242602,-638.6,0.00013698,2]
[419831093,1775404242612,-638.6,0.00013698,2]
[419831094,1775404242622,-638.6,0.00013698,2]
[419831095,1775404242633,-638.6,0.00013698,2]
[419831096,1775404242644,-638.6,0.00013698,2]
[419831097,1775404242655,-638.6,0.00013698,2]
[419831098,1775404242665,-638.6,0.00013698,2]
[419831099,1775404242674,-638.6,0.00013698,2]
[419831100,1775404242684,-638.6,0.00013698,2]
[419831101,1775404242694,-638.6,0.00013698,2]
[419831102,1775404242708,-638.6,0.00013698,2]
[419831103,1775404242719,-638.6,0.00013698,2]
[419831104,1775404242729,-500.0,0.00013698,2]
[419831105,1775404242739,-500.0,0.00013698,2]
[419831106,1775404242748,-500.0,0.00013698,2]
[419831107,1775404242758,-500.0,0.00013698,2]
[419831108,1775404242768,-500.0,0.00013698,2]
[419831109,1775404242778,-500.0,0.00013698,2]
[419831110,1775404242788,-500.0,0.00013698,2]
[419831111,1775404242798,-500.0,0.00013698,2]
[419831112,1775404242809,-184.01671123,0.00013698,2]
[419831113,1775404242819,-1004.05,0.00013698,2]
[419831114,1775404242829,-1004.05,0.00013698,2]
[419831115,1775404242839,-1004.05,0.00013698,2]
[419831116,1775404242848,-1004.05,0.00013698,2]
[419831117,1775404242858,-1004.05,0.00013698,2]
[419831118,1775404242868,-1004.05,0.00013698,2]
[419831119,1775404242877,-1004.05,0.00013698,2]
[419831120,1775404242887,-1004.05,0.00013698,2]
[419831121,1775404242897,-1004.05,0.00013698,2]
[419831122,1775404242907,-1004.05,0.00013698,2]
[419831123,1775404242918,-1004.05,0.00013698,2]
[419831124,1775404242928,-1004.05,0.00013698,2]
[419831125,1775404242937,-500.0,0.00013698,2]
[419831126,1775404242947,-500.0,0.00013698,2]
[419831127,1775404242958,-500.0,0.00013698,2]
[419831128,1775404242967,-500.0,0.00013698,2]
[419831129,1775404242976,-500.0,0.00013698,2]
[419831130,1775404242986,-500.0,0.00013698,2]
[419831131,1775404242996,-276.79569788,0.00013698,2]
[419831132,1775404243006,-873.89,0.00013698,2]
[419831133,1775404243016,-873.89,0.00013698,2]
[419831134,1775404243026,-873.89,0.00013698,2]
[419831135,1775404243036,-873.89,0.00013698,2]
[419831136,1775404243046,-873.89,0.00013698,2]
[419831137,1775404243056,-873.89,0.00013698,2]
[419831138,1775404243065,-873.89,0.00013698,2]
[419831139,1775404243075,-873.89,0.00013698,2]
[419831140,1775404243085,-873.89,0.00013698,2]
[419831141,1775404243094,-873.89,0.00013698,2]
[419831142,1775404243104,-873.89,0.00013698,2]
[419831143,1775404243114,-873.89,0.00013698,2]
[419831144,1775404243124,-873.89,0.00013698,2]
[419831145,1775404243134,-873.89,0.00013698,2]
[419831146,1775404243143,-500.0,0.00013698,2]
[419831147,1775404243153,-500.0,0.00013698,2]
[419831148,1775404243163,-500.0,0.00013698,2]
[419831149,1775404243173,-500.0,0.00013698,2]
[419831150,1775404243182,-500.0,0.00013698,2]
[419831151,1775404243192,-500.0,0.00013698,2]
[419831152,1775404243202,-500.0,0.00013698,2]
[419831153,1775404243212,-500.0,0.00013698,2]
[419831154,1775404243222,-500.0,0.00013698,2]
[419831155,1775404243232,-500.0,0.00013698,2]
[419831156,1775404243242,-500.0,0.00013698,2]
[419831157,1775404243252,-500.0,0.00013698,2]
[419831158,1775404243262,-500.0,0.00013698,2]
[419831159,1775404243272,-500.0,0.00013698,2]
[419831160,1775404243281,-500.0,0.00013698,2]
[419831161,1775404243291,-500.0,0.00013698,2]
[419831162,1775404243300,-500.0,0.00013698,2]
[419831163,1775404243310,-500.0,0.00013698,2]
[419831164,1775404243320,-500.0,0.00013698,2]
[419831165,1775404243329,-500.0,0.00013698,2]
[419831166,1775404243339,-500.0,0.00013698,2]
[419831167,1775404243348,-500.0,0.00013698,2]
[419831168,1775404243358,-500.0,0.00013698,2]
[419831169,1775404243367,-500.0,0.00013698,2]
[419831170,1775404243387,-500.0,0.00013698,2]
[419831171,1775404243399,-500.0,0.00013698,2]
[419831172,1775404243409,-500.0,0.00013698,2]
[419831173,1775404243419,-500.0,0.00013698,2]
[419831174,1775404243428,-500.0,0.00013698,2]
[419831175,1775404243438,-500.0,0.00013698,2]
[419831176,1775404243448,-520.65331997,0.00013698,2]
[419831177,1775404243458,-500.0,0.00013698,2]
[419831178,1775404243468,-500.0,0.00013698,2]
[419831179,1775404243478,-500.0,0.00013698,2]
[419831180,1775404243489,-500.0,0.00013698,2]
[419831181,1775404243499,-500.0,0.00013698,2]
[419831182,1775404243508,-500.0,0.00013698,2]
[419831183,1775404243519,-500.0,0.00013698,2]
[419831184,1775404243530,-500.0,0.00013698,2]
[419831185,1775404243540,-500.0,0.00013698,2]
[419831186,1775404243551,-500.0,0.00013698,2]
[419831187,1775404243561,-500.0,0.00013698,2]
[419831188,1775404243571,-500.0,0.00013698,2]
[419831189,1775404243581,-500.0,0.00013698,2]
[419831190,1775404243591,-497.49770464,0.00013698,2]
[419831191,1775404243601,-150.0,0.00013699,2]
[419831192,1775404243611,-150.0,0.00013699,2]
[419831193,1775404243621,-150.0,0.00013699,2]
[419831194,1775404243631,-150.0,0.00013699,2]
[419831195,1775404243641,-150.0,0.00013699,2]
[419831196,1775404243652,-150.0,0.00013699,2]
[419831197,1775404243662,-150.0,0.00013699,2]
[419831198,1775404244021,-150.0,0.00013699,2]
[419831199,1775404244032,-229.59,0.00013699,2]
[419831200,1775404244042,-5957.33,0.00013699,2]
[419831201,1775404244052,-1592.56,0.00013699,2]
[419831202,1775404244062,-437.81,0.00013699,2]
[419831203,1775404244071,-364.85,0.00013699,2]
[419831204,1775404244082,-304.04,0.00013699,2]
[419831205,1775404244091,-304.04,0.00013699,2]
[419831206,1775404244106,-202.69,0.00013699,2]
[419831207,1775404244117,-168.91,0.00013699,2]
[419831208,1775404244127,-844.57,0.00013699,2]
[419831209,1775404244137,-200.0,0.00013699,2]
[419831210,1775404244148,-166.66,0.00013699,2]
[419831211,1775404244159,-500.0,0.00013699,2]
[419831212,1775404244169,-500.0,0.00013699,2]
[419831213,1775404244179,-519.03182682,0.00013699,2]
[419831214,1775404244189,-500.0,0.00013699,2]
[419831215,1775404244199,-500.0,0.00013699,2]
[419831216,1775404244211,-598.99606082,0.00013699,2]
[419831217,1775404244221,-500.0,0.00013699,2]
[419831218,1775404244231,-500.0,0.00013699,2]
[419831219,1775404244241,-500.0,0.00013699,2]
[419831220,1775404244253,-161.91170216,0.00013699,2]
[419831221,1775404244262,-500.0,0.00013699,2]
[419831222,1775404244273,-164.79711181,0.00013699,2]
[419831223,1775404244283,-500.13152132,0.00013699,2]
[419831224,1775404244292,-500.0,0.00013699,2]
[419831225,1775404244303,-168.69935806,0.00013699,2]
[419831226,1775404244313,-500.0,0.00013699,2]
[419831227,1775404244323,-312.74353669,0.00013699,2]
[419831228,1775404244333,-500.0,0.00013699,2]
[419831229,1775404244345,-500.0,0.00013699,2]
[419831230,1775404244356,-500.0,0.00013699,2]
[419831231,1775404244366,-403.93256284,0.00013699,2]
[419831232,1775404244376,-500.0,0.00013699,2]
[419831233,1775404244387,-500.0,0.00013699,2]
[419831234,1775404244397,-500.0,0.00013699,2]
[419831235,1775404244407,-500.0,0.00013699,2]
[419831236,1775404244418,-607.20051974,0.00013699,2]
[419831237,1775404244430,-210.98153295,0.00013699,2]
[419831238,1775404244440,-500.0,0.00013699,2]
[419831239,1775404244451,-500.0,0.00013699,2]
[419831240,1775404244461,-160.7467095,0.00013699,2]
[419831241,1775404244471,-500.0,0.00013699,2]
[419831242,1775404244481,-500.0,0.00013699,2]
[419831243,1775404244491,-500.50066882,0.00013699,2]
[419831244,1775404244501,-500.0,0.00013699,2]
[419831245,1775404244512,-515.7358709,0.00013699,2]
[419831246,1775404244523,-202.64993829,0.00013699,2]
[419831247,1775404244533,-500.0,0.00013699,2]
[419831248,1775404244545,-500.0,0.00013699,2]
[419831249,1775404244556,-500.0,0.00013699,2]
[419831250,1775404244565,-518.73332026,0.00013699,2]
[419831251,1775404244575,-178.25,0.00013699,2]
[419831252,1775404244585,-785.67,0.00013699,2]
[419831253,1775404244595,-500.0,0.00013733,2]
[419831254,1775404244606,-500.0,0.00013733,2]
[419831255,1775404244617,-339.79133416,0.00013733,2]
[419831256,1775404244627,-500.0,0.00013733,2]
[419831257,1775404244640,-500.0,0.00013733,2]
[419831258,1775404244650,-500.0,0.00013733,2]
[419831259,1775404244660,-160.34417201,0.00013742,2]
[419831260,1775404244671,-500.0,0.00013743,2]
[419831261,1775404244682,-500.0,0.00013743,2]
[419831262,1775404244692,-988.81,0.00013743,2]
[419831263,1775404244702,-554.52,0.00013743,2]
[419831264,1775404244712,-888.51,0.00013743,2]
[419831265,1775404244722,-500.0,0.00013743,2]
[419831266,1775404244734,-937.06,0.00013743,2]
[419831267,1775404244744,-500.0,0.00013743,2]
[419831268,1775404244755,-533.3,0.00013743,2]
[419831269,1775404244766,-1402.96,0.00013743,2]
[419831270,1775404244776,-638.6,0.00013743,2]
[419831271,1775404244787,-1004.05,0.00013743,2]
[419831272,1775404244796,-996.49996996,0.00013748,2]
[419831273,1775404244806,-569.20510167,0.00013833,2]
[419831274,1775404244816,-162.72924009,0.00013833,2]
[419831275,1775404244831,-500.0,0.00013833,2]
[419831276,1775404244841,-166.66,0.00013836,2]
[419831277,1775404244852,-200.0604195,0.000139,2]
[419831278,1775404244862,-600.0,0.0001391,2]
[419831279,1775404244872,-227.63,0.0001391,2]
[419831280,1775404244882,-588.99,0.00013925,2]
[419831281,1775404244893,-969.24,0.00013925,2]
[419831282,1775404244903,-873.89,0.00013925,2]
[419831283,1775404244914,-500.0,0.00013925,2]
[419831284,1775404244924,-500.0,0.00013925,2]
[419831285,1775404244936,-481.06713155,0.00013925,2]
[419831286,1775404244946,-11867.35567414,0.00013944,2]
[419831287,1775404244957,-150.0,0.00013969,2]
[419831288,1775404244967,-1161.9,0.00013972,2]
[419831289,1775404244978,-150.0,0.00013973,2]
[419831290,1775404244988,-150.0,0.00013973,2]
[419831291,1775404244998,-150.0,0.00013973,2]
[419831292,1775404245010,-150.0,0.00013973,2]
[419831293,1775404245020,-150.0,0.00013973,2]
[419831294,1775404245031,-150.0,0.00013973,2]
[419831295,1775404245041,-166.66,0.00013973,2]
[419831296,1775404245051,-785.67,0.00013973,2]
[419831297,1775404245062,-996.49996996,0.00014009,2]
[419831298,1775404245072,-166.66,0.00014042,2]
[419831299,1775404245083,-333.79,0.000141,2]
[419831300,1775404245093,-2463.48,0.000141,2]
[419831301,1775404245103,-166.66,0.0001411,2]
[419831302,1775404245114,-500.0,0.00014115,2]
[419831303,1775404245127,-500.0,0.00014115,2]
[419831304,1775404245138,-988.81,0.00014115,2]
[419831305,1775404245148,-554.52,0.00014115,2]
[419831306,1775404245158,-888.51,0.00014115,2]
[419831307,1775404245169,-500.0,0.00014115,2]
[419831308,1775404245179,-937.06,0.00014115,2]
[419831309,1775404245189,-500.0,0.00014115,2]
[419831310,1775404245199,-533.3,0.00014115,2]
[419831311,1775404245209,-1402.96,0.00014115,2]
[419831312,1775404245220,-638.6,0.00014115,2]
[419831313,1775404245230,-1004.05,0.00014115,2]
[419831314,1775404245241,-60000.0,0.00014115,2]
[419831316,1775404245251,-403.04138764,0.00014241,2]
[419831317,1775404245261,-150.0,0.00014243,2]
[419831318,1775404245272,-503.0,0.00014245,2]
[419831319,1775404245283,-588.99,0.00014246,2]
[419831320,1775404245293,-969.24,0.00014246,2]
[419831322,1775404245302,-1161.9,0.00014246,2]
[419831323,1775404245312,-873.89,0.00014246,2]
[419831324,1775404245322,-500.0,0.00014246,2]
[419831325,1775404245332,-500.0,0.00014246,2]
[419831326,1775404245342,-166.66,0.00014247,2]
[419831327,1775404245353,-150.0,0.00014247,2]
[419831330,1775404245363,-150.0,0.00014247,2]
[419831331,1775404245373,-150.0,0.00014247,2]
[419831332,1775404245383,-150.0,0.00014247,2]
[419831333,1775404245394,-150.0,0.00014247,2]
[419831334,1775404245404,-150.0,0.00014247,2]
[419831335,1775404245414,-1000.0,0.00014247,2]
[419831336,1775404245424,-1000.0,0.00014247,2]
[419831337,1775404245434,-308.03873246,0.00014247,2]
[419831338,1775404245444,-189.74788311,0.00014247,2]
[419831339,1775404245454,-1000.0,0.00014247,2]
[419831340,1775404245465,-1000.0,0.00014247,2]
[419831341,1775404245474,-1000.0,0.00014247,2]
[419831342,1775404245485,-1000.0,0.00014247,2]
[419831343,1775404245495,-730.09729929,0.00014247,2]
[419831344,1775404245505,-1000.0,0.00014247,2]
[419831345,1775404245516,-1000.0,0.00014247,2]
[419831346,1775404245525,-743.80429884,0.00014247,2]
[419831347,1775404245536,-1000.0,0.00014247,2]
[419831348,1775404245546,-1000.0,0.00014247,2]
[419831349,1775404245556,-1000.0,0.00014247,2]
[419831350,1775404245565,-1000.0,0.00014247,2]
[419831351,1775404245575,-500.99241895,0.00014247,2]
[419831352,1775404245586,-1000.0,0.00014247,2]
[419831353,1775404245596,-1000.0,0.00014247,2]
[419831354,1775404245606,-1000.0,0.00014247,2]
[419831355,1775404245619,-1000.0,0.00014247,2]
[419831356,1775404245629,-500.0,0.00014247,2]
[419831357,1775404245639,-1000.0,0.00014247,2]
[419831358,1775404245649,-1000.0,0.00014247,2]
[419831359,1775404245659,-1000.0,0.00014247,2]
[419831360,1775404245670,-797.22,0.00014247,2]
[419831361,1775404245681,-1000.0,0.00014281,2]
[419831362,1775404245692,-861.43877969,0.00014281,2]
[419831363,1775404245703,-1000.0,0.00014281,2]
[419831364,1775404245713,-1000.0,0.00014281,2]
[419831365,1775404245724,-627.70930647,0.00014281,2]
[419831366,1775404245735,-1000.0,0.00014286,2]
[419831367,1775404245745,-1000.0,0.00014317,2]
[419831368,1775404245756,-790.32775663,0.00014381,2]
[419831369,1775404245767,-5957.33,0.00014384,2]
[419831370,1775404245777,-166.66,0.00014384,2]
[419831371,1775404245786,-150.0,0.000144,2]
[419831372,1775404245797,-150.0,0.000144,2]
[419831373,1775404245808,-150.0,0.000144,2]
[419831374,1775404245819,-150.0,0.000144,2]
[419831375,1775404245829,-150.0,0.000144,2]
[419831376,1775404245840,-150.0,0.000144,2]
[419831377,1775404245850,-150.0,0.000144,2]
[419831378,1775404245861,-150.0,0.000144,2]
[419831379,1775404245871,-150.0,0.000144,2]
[419831380,1775404245880,-150.0,0.000144,2]
[419831381,1775404245890,-150.0,0.000144,2]
[419831382,1775404245900,-150.05716299,0.000144,2]
[419831383,1775404245910,-150.0,0.000144,2]
[419831384,1775404245920,-150.0,0.000144,2]
[419831385,1775404245929,-150.0,0.000144,2]
[419831386,1775404245939,-63475.53379997,0.00014409,2]
[419831387,1775404245949,-150.0,0.00014418,2]
[419831388,1775404245960,-150.0,0.00014421,2]
[419831389,1775404245970,-150.0,0.00014423,2]
[419831390,1775404245980,-150.0,0.00014428,2]
[419831391,1775404245990,-150.0,0.00014428,2]
[419831392,1775404246000,-150.0,0.00014429,2]
[419831393,1775404246010,-150.0,0.00014435,2]
[419831394,1775404246020,-150.0,0.00014442,2]
[419831395,1775404246031,-1000.0,0.00014443,2]
[419831396,1775404246041,-150.0,0.00014445,2]
[419831397,1775404246051,-73369.80644077,0.00014445,2]
[419831398,1775404246060,-150.0,0.00014452,2]
[419831399,1775404246071,-150.0,0.00014453,2]
[419831400,1775404246080,-150.0,0.00014456,2]
[419831401,1775404246090,-150.0,0.00014456,2]
[419831402,1775404246100,-150.0,0.00014457,2]
[419831403,1775404246110,-150.0,0.00014462,2]
[419831404,1775404246120,-150.0,0.00014462,2]
[419831405,1775404246130,-150.0,0.00014468,2]
[419831406,1775404246140,-150.0,0.0001447,2]
[419831407,1775404246150,-150.0,0.00014483,2]
[419831408,1775404246164,-150.0,0.00014484,2]
[419831409,1775404246174,-150.0,0.00014484,2]
[419831410,1775404246185,-150.0,0.00014486,2]
[419831411,1775404246195,-150.0,0.00014488,2]
[419831412,1775404246204,-150.0,0.00014489,2]
[419831413,1775404246214,-150.0,0.0001449,2]
[419831414,1775404246225,-150.0,0.00014503,2]
[419831415,1775404246235,-150.0,0.00014504,2]
[419831416,1775404246244,-1619.684,0.00014504,2]
[419831417,1775404246254,-150.0,0.00014505,2]
[419831418,1775404246264,-150.0,0.00014512,2]
[419831419,1775404246274,-150.0,0.00014512,2]
[419831420,1775404246284,-150.0,0.00014513,2]
[419831421,1775404246295,-150.0,0.00014514,2]
[419831422,1775404246305,-150.0,0.00014517,2]
[419831423,1775404246315,-500.0,0.00014517,2]
[419831424,1775404246325,-500.0,0.00014517,2]
[419831425,1775404246335,-1161.9,0.0001452,2]
[419831426,1775404246345,-150.0,0.00014523,2]
[419831427,1775404246355,-150.0,0.00014523,2]
[419831428,1775404246366,-150.0,0.00014525,2]
[419831429,1775404246376,-150.0,0.00014535,2]
[419831430,1775404246386,-150.0,0.0001454,2]
[419831431,1775404246396,-150.0,0.0001454,2]
[419831432,1775404246406,-150.0,0.00014541,2]
[419831433,1775404246416,-150.0,0.00014543,2]
[419831434,1775404246427,-150.0,0.00014545,2]
[419831435,1775404246437,-150.0,0.00014555,2]
[419831436,1775404246446,-150.0,0.00014558,2]
[419831437,1775404246457,-150.0,0.00014558,2]
[419831438,1775404246467,-150.0,0.00014566,2]
[419831439,1775404246476,-150.0,0.00014568,2]
[419831440,1775404246634,-150.0,0.00014568,2]
[419831441,1775404246644,-150.0,0.00014571,2]
[419831442,1775404246654,-150.0,0.00014576,2]
[419831443,1775404246663,-150.0,0.00014578,2]
[419831444,1775404246673,-150.0,0.0001458,2]
[419831445,1775404246683,-150.0,0.00014585,2]
[419831446,1775404246693,-150.0,0.00014587,2]
[419831447,1775404246703,-150.0,0.00014593,2]
[419831448,1775404246712,-150.0,0.00014596,2]
[419831449,1775404246722,-150.0,0.00014596,2]
[419831450,1775404246732,-150.0,0.000146,2]
[419831451,1775404246741,-150.0,0.00014603,2]
[419831452,1775404246751,-150.0,0.00014606,2]
[419831453,1775404246760,-150.0,0.00014608,2]
[419831454,1775404246770,-150.0,0.00014611,2]
[419831455,1775404246779,-150.0,0.00014625,2]
[419831456,1775404246790,-150.0,0.00014625,2]
[419831457,1775404246801,-150.0,0.00014625,2]
[419831458,1775404246812,-150.0,0.00014629,2]
[419831459,1775404246822,-150.0,0.00014629,2]
[419831460,1775404246833,-150.0,0.00014629,2]
[419831461,1775404246844,-336.372262,0.00014638,2]
[419831462,1775404246855,-150.0,0.00014646,2]
[419831463,1775404246865,-150.0,0.00014646,2]
[419831464,1775404246876,-150.0,0.00014648,2]
[419831465,1775404246887,-150.0,0.00014649,2]
[419831466,1775404246897,-150.0,0.00014653,2]
[419831467,1775404246908,-150.0,0.00014653,2]
[419831468,1775404246918,-150.0,0.00014657,2]
[419831469,1775404246928,-150.0,0.00014658,2]
[419831470,1775404246937,-150.0,0.00014664,2]
[419831471,1775404246946,-150.0,0.00014667,2]
[419831472,1775404246956,-150.0,0.00014667,2]
[419831473,1775404246966,-150.0,0.0001467,2]
[419831474,1775404246975,-150.0,0.0001467,2]
[419831475,1775404246984,-1000.0,0.00014671,2]
[419831476,1775404246994,-150.0,0.00014681,2]
[419831477,1775404247003,-150.0,0.00014681,2]
[419831478,1775404247012,-150.0,0.00014681,2]
[419831479,1775404247023,-150.0,0.00014686,2]
[419831480,1775404247035,-150.0,0.00014691,2]
[419831481,1775404247044,-150.0,0.00014693,2]
[419831483,1775404247054,-150.0,0.00014699,2]
[419831484,1775404247063,-2000.0,0.000147,2]
[419831485,1775404247072,-2000.0,0.000147,2]
[419831486,1775404247081,-2000.0,0.000147,2]
[419831487,1775404247090,-2000.0,0.000147,2]
[419831488,1775404247100,-2000.0,0.000147,2]
[419831489,1775404247109,-2000.0,0.000147,2]
[419831490,1775404247118,-2000.0,0.000147,2]
[419831491,1775404247128,-2000.0,0.000147,2]
[419831492,1775404247138,-2000.0,0.000147,2]
[419831493,1775404247149,-2000.0,0.000147,2]
[419831494,1775404247158,-2000.0,0.000147,2]
[419831496,1775404247168,-2000.0,0.000147,2]
[419831497,1775404247179,-2000.0,0.000147,2]
[419831498,1775404247188,-497.0,0.000147,2]
[419831499,1775404247197,-245.6863,0.000147,2]
[419831500,1775404247207,-308.24,0.00014702,2]
[419831501,1775404247216,-150.0,0.00014708,2]
[419831503,1775404247225,-150.0,0.00014709,2]
[419831505,1775404247235,-150.0,0.00014709,2]
[419831506,1775404247244,-150.0,0.0001471,2]
[419831507,1775404247254,-150.0,0.00014712,2]
[419831508,1775404247264,-150.0,0.00014714,2]
[419831509,1775404247273,-150.0,0.00014715,2]
[419831510,1775404247282,-150.0,0.00014716,2]
[419831511,1775404247291,-150.0,0.00014732,2]
[419831512,1775404247300,-11798.07560763,0.00014734,2]
[419831513,1775404247310,-150.0,0.00014734,2]
[419831514,1775404247319,-150.0,0.00014737,2]
[419831515,1775404247329,-150.0,0.00014737,2]
[419831516,1775404247338,-150.0,0.00014738,2]
[419831517,1775404247348,-150.0,0.00014743,2]
[419831518,1775404247358,-1504.0387564,0.00014749,2]
[419831519,1775404247368,-459.79,0.0001475,2]
[419831520,1775404247377,-150.0,0.00014752,2]
[419831521,1775404247387,-150.0,0.00014753,2]
[419831523,1775404247396,-150.0,0.00014756,2]
[419831524,1775404247405,-150.0,0.00014761,2]
[419831525,1775404247415,-150.0,0.00014761,2]
[419831526,1775404247424,-150.0,0.00014765,2]
[419831528,1775404247433,-150.0,0.00014765,2]
[419831531,1775404247442,-459.79,0.00014768,2]
[419831532,1775404247451,-150.0,0.00014769,2]
[419831534,1775404247460,-150.0,0.00014769,2]
[419831535,1775404247470,-150.0,0.00014771,2]
[419831536,1775404247479,-150.0,0.00014774,2]
[419831537,1775404247488,-150.0,0.00014783,2]
[419831538,1775404247497,-459.78375685,0.00014786,2]
[419831539,1775404247506,-150.0,0.00014787,2]
[419831540,1775404247516,-277.65175335,0.00014791,2]
[419831541,1775404247524,-500.0,0.00014791,2]
[419831542,1775404247534,-500.0,0.00014791,2]